lending/lending_fUSD_20250121
["ID","MTS","AMOUNT","RATE_DAILY","PERIOD"]
[349895947,1737483056040,-763.36426744,0.00020903,2]
[349895948,1737483056053,-200.0,0.00020905,2]
[349895949,1737483056062,-200.0,0.00020905,2]
[349895950,1737483056073,-150.0,0.00020906,2]
[349895951,1737483056082,-200.0,0.00020907,2]
[349895952,1737483056093,-1950.82736059,0.00020908,2]
[349895953,1737483056103,-2519.7339932,0.00020911,2]
[349895954,1737483056113,-399.15698524,0.00020915,2]
[349895955,1737483056122,-150.0,0.00020916,2]
[349895956,1737483056133,-200.0,0.00020918,2]
[349895957,1737483056144,-200.0,0.00020918,2]
[349895958,1737483056154,-9416.86634893,0.00020918,2]
[349895959,1737483056163,-366.54825729,0.00020921,2]
[349895960,1737483056172,-200.0,0.00020921,2]
[349895961,1737483056182,-150.0,0.00020921,2]
[349895962,1737483056192,-200.0,0.00020923,2]
[349895963,1737483056201,-13570.2529662,0.00020923,2]
[349895964,1737483056211,-580.88759465,0.00020924,2]
[349895965,1737483056221,-1000.38382296,0.00020927,2]
[349895966,1737483056230,-393.92907249,0.00020932,2]
[349895967,1737483056241,-399.15698524,0.00020933,2]
[349895968,1737483056251,-200.0,0.00020935,2]
[349895969,1737483056260,-150.0,0.00020937,2]
[349895970,1737483056269,-200.0,0.00020941,2]
[349895971,1737483056279,-580.88759465,0.00020942,2]
[349895972,1737483056288,-200.0,0.00020942,2]
[349895973,1737483056298,-2911.96595431,0.00020943,2]
[349895974,1737483056307,-8019.89191812,0.00020943,2]
[349895975,1737483056317,-383.84415347,0.00020945,2]
[349895976,1737483056327,-365.68213372,0.00020947,2]
[349895977,1737483056336,-580.88759465,0.00020948,2]
[349895978,1737483056346,-200.0,0.00020949,2]
[349895979,1737483056356,-173.0,0.00020959,13]
[349895980,1737483056365,-12500.0,0.00020966,2]
[349895981,1737483056374,-150.0,0.00020969,2]
[349895982,1737483056383,-500.0,0.00020973,2]
[349895983,1737483056393,-2522.94,0.00020974,2]
[349895984,1737483056402,-150.0,0.00020984,2]
[349895985,1737483056412,-150.0,0.00020987,2]
[349895986,1737483056421,-229.15442634,0.00020995,2]
[349895987,1737483056430,-1000.0,0.00020997,2]
[349895988,1737483056439,-1500.0,0.00021,2]
[349895989,1737483056448,-7594.49,0.00021,2]
[349895990,1737483056457,-545.41932934,0.00021,2]
[349895991,1737483056467,-1000.0,0.00021,2]
[349895992,1737483056476,-40276.56088392,0.00021,4]
[349895993,1737483056493,-444714.47548523,0.00021,4]
[349895994,1737483056502,-3549.0,0.00021,2]
[349895995,1737483056512,-150.0,0.00021005,2]
[349895996,1737483056521,-150.0,0.00021015,2]
[349895997,1737483056530,-500.0,0.0002102,2]
[349895998,1737483056539,-1000.0,0.00021028,2]
[349895999,1737483056549,-179.03,0.00021032,2]
[349896000,1737483056559,-150.0,0.00021037,2]
[349896001,1737483056568,-150.0,0.0002105,2]
[349896002,1737483056578,-1000.0,0.00021052,2]
[349896003,1737483056589,-209.79143977,0.00021067,2]
[349896004,1737483056598,-1000.0,0.00021077,2]
[349896005,1737483056608,-150.0,0.00021082,2]
[349896006,1737483056620,-2392.90054498,0.00021084,2]
[349896007,1737483056636,-194.32161878,0.00021084,2]
[349896008,1737483056649,-381.51400281,0.0002109,2]
[349896009,1737483056658,-3000.0,0.0002109,2]
[349896010,1737483056667,-500.0,0.00021093,2]
[349896011,1737483056678,-502.06,0.00021093,2]
[349896012,1737483056687,-1001.0949,0.00021094,2]
[349896013,1737483056696,-643.35,0.00021094,2]
[349896014,1737483056705,-1429.17,0.00021094,2]
[349896015,1737483056715,-397.965417,0.00021094,2]
[349896016,1737483056725,-832.94,0.00021094,2]
[349896017,1737483056735,-500.0,0.00021094,2]
[349896018,1737483056744,-817.29,0.00021094,2]
[349896019,1737483056754,-1391.94,0.00021094,2]
[349896020,1737483056765,-500.0,0.00021094,2]
[349896021,1737483056775,-607.54,0.00021094,2]
[349896022,1737483056784,-1496.59,0.00021094,2]
[349896023,1737483056794,-517.97516,0.00021094,2]
[349896024,1737483056803,-735.63,0.00021094,2]
[349896025,1737483056812,-589.48,0.00021094,2]
[349896026,1737483056821,-807.53,0.00021094,2]
[349896027,1737483056832,-612.83,0.00021094,2]
[349896028,1737483056842,-1286.11,0.00021094,2]
[349896029,1737483056851,-1633.24,0.00021094,2]
[349896030,1737483056861,-817.72,0.00021094,2]
[349896031,1737483056873,-500.0,0.00021094,2]
[349896032,1737483056890,-1904.28,0.00021094,2]
[349896033,1737483056902,-500.0,0.00021094,2]
[349896034,1737483056913,-2362.47,0.00021094,2]
[349896035,1737483056924,-1323.28,0.00021094,2]
[349896036,1737483056935,-756.05,0.00021094,2]
[349896037,1737483056945,-1033.81,0.00021094,2]
[349896038,1737483056955,-2178.53,0.00021094,2]
[349896039,1737483056965,-1169.81,0.00021094,2]
[349896040,1737483056974,-753.19,0.00021094,2]
[349896041,1737483056984,-500.0,0.00021094,2]
[349896042,1737483056994,-1926.81,0.00021094,2]
[349896043,1737483057005,-830.69,0.00021094,2]
[349896044,1737483057015,-898.38,0.00021094,2]
[349896045,1737483057025,-837.96,0.00021094,2]
[349896046,1737483057035,-3361.17,0.00021094,2]
[349896047,1737483057045,-1737.93,0.00021094,2]
[349896048,1737483057059,-1522.51,0.00021094,2]
[349896049,1737483057070,-1030.59,0.00021094,2]
[349896050,1737483057081,-691.72,0.00021094,2]
[349896051,1737483057091,-1190.5,0.00021094,2]
[349896052,1737483057101,-500.0,0.00021094,2]
[349896053,1737483057110,-533.52,0.00021094,2]
[349896054,1737483057119,-1134.08,0.00021094,2]
[349896055,1737483057134,-640.7,0.00021094,2]
[349896056,1737483057144,-1408.54,0.00021094,2]
[349896057,1737483057154,-731.78,0.00021094,2]
[349896058,1737483057164,-500.0,0.00021094,2]
[349896059,1737483057173,-1382.62,0.00021094,2]
[349896060,1737483057183,-1066.84,0.00021094,2]
[349896061,1737483057193,-550.98,0.00021094,2]
[349896062,1737483057203,-500.0,0.00021094,2]
[349896063,1737483057213,-1423.38,0.00021094,2]
[349896064,1737483057222,-1625.15,0.00021094,2]
[349896065,1737483057232,-500.0,0.00021095,2]
[349896066,1737483057242,-500.0,0.00021095,2]
[349896067,1737483057252,-500.0,0.00021095,2]
[349896068,1737483057262,-516.77,0.00021095,2]
[349896069,1737483057273,-1008.94,0.00021095,2]
[349896070,1737483057283,-500.0,0.00021095,2]
[349896071,1737483057298,-519.1,0.00021095,2]
[349896072,1737483057307,-500.0,0.00021095,2]
[349896073,1737483057316,-508.52,0.00021095,2]
[349896074,1737483057326,-500.0,0.00021095,2]
[349896075,1737483057336,-451.49004303,0.00021095,2]
[349896076,1737483057349,-48.50995697,0.00021095,2]
[349896077,1737483057359,-500.0,0.00021095,2]
[349896078,1737483057368,-500.0,0.00021095,2]
[349896079,1737483057380,-500.0,0.00021095,2]
[349896080,1737483057390,-500.0,0.00021095,2]
[349896081,1737483057400,-500.0,0.00021095,2]
[349896082,1737483057409,-356.68975933,0.00021095,2]
[349896083,1737483057419,-500.0,0.00021095,2]
[349896084,1737483057428,-500.0,0.00021095,2]
[349896085,1737483057438,-500.0,0.00021095,2]
[349896086,1737483057448,-500.0,0.00021095,2]
[349896087,1737483057457,-500.0,0.00021095,2]
[349896088,1737483057467,-500.0,0.00021095,2]
[349896089,1737483057476,-500.0,0.00021095,2]
[349896090,1737483057486,-500.0,0.00021095,2]
[349896091,1737483057495,-500.0,0.00021095,2]
[349896092,1737483057505,-500.0,0.00021095,2]
[349896093,1737483057514,-500.0,0.00021095,2]
[349896094,1737483057524,-500.0,0.00021095,2]
[349896095,1737483057533,-500.0,0.00021095,2]
[349896096,1737483057544,-500.0,0.00021095,2]
[349896097,1737483057555,-491.06279195,0.00021095,2]
[349896098,1737483057567,-8.93720805,0.00021095,2]
[349896099,1737483057577,-881.25,0.00021095,2]
[349896100,1737483057587,-1006.25,0.00021095,2]
[349896101,1737483057597,-500.0,0.00021095,2]
[349896102,1737483057607,-937.22,0.00021095,2]
[349896103,1737483057617,-500.0,0.00021095,2]
[349896104,1737483057630,-947.84,0.00021095,2]
[349896105,1737483057640,-751.6,0.00021095,2]
[349896106,1737483057651,-500.0,0.00021095,2]
[349896107,1737483057661,-500.0,0.00021095,2]
[349896108,1737483057670,-500.0,0.00021095,2]
[349896109,1737483057681,-772.41,0.00021095,2]
[349896110,1737483057690,-871.21,0.00021095,2]
[349896111,1737483057700,-500.0,0.00021095,2]
[349896112,1737483057710,-856.04,0.00021095,2]
[349896113,1737483057720,-706.52,0.00021095,2]
[349896114,1737483057729,-500.0,0.00021095,2]
[349896115,1737483057738,-500.0,0.00021095,2]
[349896116,1737483057747,-500.0,0.00021095,2]
[349896117,1737483057757,-573.72,0.00021095,2]
[349896118,1737483057767,-1858.26,0.00021095,2]
[349896119,1737483057776,-3440.55,0.00021095,2]
[349896120,1737483057786,-545.79,0.00021095,2]
[349896121,1737483057796,-529.8,0.00021095,2]
[349896122,1737483057805,-500.0,0.00021095,2]
[349896123,1737483057814,-775.36,0.00021095,2]
[349896124,1737483057824,-500.0,0.00021095,2]
[349896125,1737483057834,-793.73,0.00021095,2]
[349896126,1737483057843,-668.75,0.00021095,2]
[349896127,1737483057852,-500.0,0.00021095,2]
[349896128,1737483057861,-500.0,0.00021095,2]
[349896129,1737483057873,-965.21,0.00021095,2]
[349896130,1737483057885,-695.23,0.00021095,2]
[349896131,1737483057895,-594.25,0.00021095,2]
[349896132,1737483057905,-500.0,0.00021095,2]
[349896133,1737483057914,-781.13,0.00021095,2]
[349896134,1737483057924,-537.5,0.00021095,2]
[349896135,1737483057933,-811.98,0.00021095,2]
[349896136,1737483057942,-1002.02,0.00021095,2]
[349896137,1737483057952,-3103.79,0.00021095,2]
[349896138,1737483057962,-500.0,0.00021095,2]
[349896139,1737483057972,-620.07,0.00021095,2]
[349896140,1737483057982,-1537.27,0.00021095,2]
[349896141,1737483057991,-500.0,0.00021095,2]
[349896142,1737483058001,-500.0,0.00021095,2]
[349896143,1737483058012,-652.98,0.00021095,2]
[349896144,1737483058022,-633.0,0.00021095,2]
[349896145,1737483058033,-750.85,0.00021095,2]
[349896146,1737483058046,-902.08,0.00021095,2]
[349896147,1737483058056,-1260.08,0.00021095,2]
[349896148,1737483058065,-682.01,0.00021095,2]
[349896149,1737483058075,-500.0,0.00021095,2]
[349896150,1737483058085,-500.0,0.00021095,2]
[349896151,1737483058095,-556.79,0.00021095,2]
[349896152,1737483058104,-1265.59,0.00021095,2]
[349896153,1737483058115,-956.41,0.00021095,2]
[349896154,1737483058127,-557.79,0.00021095,2]
[349896155,1737483058137,-500.0,0.00021095,2]
[349896156,1737483058146,-586.91,0.00021095,2]
[349896157,1737483058156,-2879.02,0.00021095,2]
[349896158,1737483058167,-500.0,0.00021095,2]
[349896159,1737483058176,-918.68,0.00021095,2]
[349896160,1737483058186,-500.0,0.00021095,2]
[349896161,1737483058195,-838.25,0.00021095,2]
[349896162,1737483058204,-500.0,0.00021095,2]
[349896163,1737483058215,-500.0,0.00021095,2]
[349896164,1737483058225,-641.37,0.00021095,2]
[349896165,1737483058235,-856.36,0.00021095,2]
[349896166,1737483058245,-2447.06897,0.000211,2]
[349896167,1737483058254,-3117.41264423,0.000211,10]
[349896168,1737483058264,-150.0,0.00021109,2]
[349896169,1737483058275,-150.0,0.00021131,2]
[349896170,1737483058285,-229.15442632,0.00021146,2]
[349896171,1737483058295,-698.0,0.00021149,2]
[349896172,1737483058304,-2675.0,0.00021151,2]
[349896173,1737483058314,-1950.82736059,0.00021154,2]
[349896174,1737483058324,-150.0,0.00021158,2]
[349896175,1737483058333,-150.0,0.00021164,2]
[349896176,1737483058343,-213.25185802,0.0002117,2]
[349896177,1737483058352,-383.84415347,0.00021172,2]
[349896178,1737483058362,-500.0,0.00021173,2]
[349896179,1737483058372,-377.17375786,0.00021173,2]
[349896180,1737483058385,-301.45000873,0.00021173,2]
[349896181,1737483058394,-500.0,0.00021173,2]
[349896182,1737483058404,-607.5063506,0.00021173,2]
[349896183,1737483058414,-500.0,0.00021173,2]
[349896184,1737483058424,-500.0,0.00021173,2]
[349896185,1737483058433,-150.0,0.00021173,2]
[349896186,1737483058443,-1798.56986953,0.00021178,2]
[349896187,1737483058453,-300.0,0.00021178,2]
[349896188,1737483058462,-300.0,0.00021178,2]
[349896189,1737483058471,-150.0,0.00021178,2]
[349896190,1737483058481,-437.71,0.00021178,2]
[349896191,1737483058490,-150.0,0.00021178,2]
[349896192,1737483058499,-437.71,0.00021178,2]
[349896193,1737483058508,-150.0,0.00021178,2]
[349896194,1737483058517,-437.71,0.00021178,2]
[349896195,1737483058526,-150.0,0.00021178,2]
[349896196,1737483058535,-150.0,0.00021178,2]
[349896197,1737483058545,-150.0,0.00021178,2]
[349896198,1737483058554,-437.71,0.00021178,2]
[349896199,1737483058563,-437.71,0.00021178,2]
[349896200,1737483058572,-150.0,0.00021178,2]
[349896201,1737483058582,-150.0,0.00021178,2]
[349896202,1737483058592,-150.0,0.00021178,2]
[349896203,1737483058603,-437.71,0.00021178,2]
[349896204,1737483058612,-437.71,0.00021178,2]
[349896205,1737483058622,-150.0,0.00021178,2]
[349896206,1737483058632,-437.71,0.00021178,2]
[349896207,1737483058642,-150.0,0.00021178,2]
[349896208,1737483058652,-437.71,0.00021178,2]
[349896209,1737483058661,-437.71,0.00021178,2]
[349896210,1737483058671,-437.71,0.00021178,2]
[349896211,1737483058680,-437.71,0.00021178,2]
[349896212,1737483058689,-437.71,0.00021178,2]
[349896213,1737483058698,-437.71,0.00021178,2]
[349896214,1737483058707,-437.71,0.00021178,2]
[349896215,1737483058717,-671.67,0.00021178,2]
[349896216,1737483058727,-666.0,0.00021179,2]
[349896217,1737483058736,-622.79,0.00021179,2]
[349896218,1737483058745,-500.0,0.00021179,2]
[349896219,1737483058755,-500.0,0.00021179,2]
[349896220,1737483058764,-500.0,0.00021179,2]
[349896221,1737483058926,-500.0,0.00021179,2]
[349896222,1737483058937,-500.0,0.00021179,2]
[349896223,1737483058947,-500.0,0.00021179,2]
[349896224,1737483058957,-500.0,0.00021179,2]
[349896225,1737483058967,-500.0,0.00021179,2]
[349896226,1737483058977,-500.0,0.00021179,2]
[349896227,1737483058988,-500.0,0.00021179,2]
[349896228,1737483058998,-999.0,0.00021179,2]
[349896229,1737483059008,-88682.68207484,0.0002118,2]
[349896230,1737483059225,-718.48232406,0.0002118,2]
[349896231,1737483059290,-1690.19707736,0.0002118,2]
[349896232,1737483092533,-390.0,0.000213,15]
[349896233,1737483199951,187.43,0.00012329,2]
[349896234,1737483672666,155.34,0.00010137,2]
[349896237,1737483908299,644.66,0.00012,2]
[349896238,1737483908328,800.0,0.00012,2]
[349896239,1737483908354,800.0,0.00012,2]
[349896240,1737483908379,800.0,0.00012,2]
[349896241,1737483908405,800.0,0.00012,2]
[349896242,1737483908431,800.0,0.00012,2]
[349896243,1737483908457,800.0,0.00012,2]
[349896244,1737483908482,800.0,0.00012,2]
[349896245,1737483908506,800.0,0.00012,2]
[349896246,1737483908531,800.0,0.00012,2]
[349896247,1737483908554,800.0,0.00012,2]
[349896248,1737483908578,300.0,0.00012,2]
[349896249,1737483908608,9812.57,0.00012,2]
[349896250,1737483908631,10000.0,0.00012,2]
[349896251,1737483908655,10000.0,0.00012,2]
[349896252,1737483908678,10000.0,0.00012,2]
[349896253,1737483908701,10000.0,0.00012,2]
[349896254,1737483908725,10000.0,0.00012,2]
[349896255,1737483908748,10000.0,0.00012,2]
[349896256,1737483908770,5000.0,0.00012,2]
[349896257,1737483908797,903020.03720659,0.00012,2]
[349896264,1737484084596,32899.57544834,0.0001,2]
[349896265,1737484084621,54632.69293192,0.0001,2]
[349896268,1737484193589,-573.32806682,0.00013,2]
[349896287,1737484231786,-300.0,0.00015399,2]
[349896288,1737484231796,-13208.01560926,0.000154,2]
[349896289,1737484231805,-3013.86165065,0.00016,2]
[349896290,1737484231814,-522.16,0.00016341,2]
[349896291,1737484231823,-420.0,0.00016847,2]
[349896292,1737484231832,-195.0,0.00016909,2]
[349896293,1737484231841,-250.0,0.00017934,2]
[349896294,1737484231851,-1004.24201445,0.00018,3]
[349896295,1737484232057,-8856.57937757,0.00018,3]
[349896296,1737484232067,-7384.72382394,0.00018,3]
[349896297,1737484232076,-821.59,0.00018005,2]
[349896298,1737484232085,-391.29,0.00018056,2]
[349896299,1737484232095,-155.34,0.00018065,2]
[349896300,1737484232105,-352.59,0.00018082,2]
[349896301,1737484232115,-164.65,0.00018119,2]
[349896302,1737484232125,-200.0,0.0001814,2]
[349896303,1737484232135,-1240.33,0.00018197,2]
[349896304,1737484232144,-2077.2,0.00018204,2]
[349896305,1737484232153,-250.0,0.0001821,2]
[349896306,1737484232163,-539.69732819,0.00018319,2]
[349896307,1737484232172,-250.0,0.0001834,2]
[349896308,1737484232181,-16294.27004334,0.000184,2]
[349896309,1737484232194,-7605.72995666,0.000184,2]
[349896311,1737484232205,-287.72166147,0.00018419,2]
[349896314,1737484232216,-712.27833853,0.00018419,2]
[349896316,1737484232226,-159.18,0.00018542,2]
[349896318,1737484232235,-1118.568,0.00018552,2]
[349896320,1737484232245,-158.377,0.00018552,2]
[349896322,1737484232255,-154.46,0.00018573,30]
[349896324,1737484232264,-159.18,0.00018573,2]
[349896326,1737484232273,-159.18,0.00018604,2]
[349896327,1737484232282,-522.16,0.00018605,2]
[349896329,1737484232291,-159.18,0.00018635,2]
[349896332,1737484232300,-352.59,0.00018751,2]
[349896334,1737484232309,-150.0,0.00018977,2]
[349896336,1737484232319,-150.0,0.00019341,2]
[349896338,1737484232328,-2754.1057,0.00019351,2]
[349896341,1737484232338,-8437.74096147,0.00019351,2]
[349896343,1737484232350,-275.83066418,0.00019351,2]
[349896345,1737484232361,-522.3652808,0.00019351,2]
[349896347,1737484232372,-7571.98607579,0.00019351,2]
[349896376,1737484232844,-8191.41241776,0.00019351,2]
[349896377,1737484232854,-155.8674,0.00019351,2]
[349896378,1737484232867,-352.59,0.0001942,2]
[349896379,1737484232876,-975.25018224,0.00019448,2]
[349896380,1737484232896,-6669.81196722,0.00019448,2]
[349896381,1737484232906,-500.0,0.00019449,2]
[349896382,1737484232916,-500.0,0.00019449,2]
[349896383,1737484232925,-500.0,0.00019449,2]
[349896384,1737484232936,-500.0,0.00019449,2]
[349896385,1737484232947,-500.0,0.00019449,2]
[349896386,1737484232956,-752.92,0.00019449,2]
[349896387,1737484232966,-500.0,0.00019449,2]
[349896388,1737484232976,-500.0,0.00019449,2]
[349896389,1737484232986,-500.0,0.00019449,2]
[349896390,1737484232995,-500.0,0.00019449,2]
[349896391,1737484233005,-500.0,0.00019449,2]
[349896392,1737484233015,-500.0,0.00019449,2]
[349896393,1737484233025,-500.0,0.00019449,2]
[349896394,1737484233036,-500.0,0.00019449,2]
[349896395,1737484233046,-500.0,0.00019449,2]
[349896396,1737484233056,-183.91683419,0.00019449,2]
[349896397,1737484233066,-500.0,0.00019449,2]
[349896398,1737484233076,-500.0,0.00019449,2]
[349896399,1737484233086,-500.0,0.00019449,2]
[349896400,1737484233096,-500.0,0.00019449,2]
[349896401,1737484233106,-507.43775725,0.00019449,2]
[349896402,1737484233117,-500.0,0.00019449,2]
[349896403,1737484233127,-500.0,0.00019449,2]
[349896404,1737484233137,-500.0,0.00019449,2]
[349896405,1737484233147,-500.0,0.00019449,2]
[349896406,1737484233157,-500.0,0.00019449,2]
[349896407,1737484233167,-500.0,0.00019449,2]
[349896408,1737484233177,-484.45109359,0.00019449,2]
[349896409,1737484233187,-321.7072501,0.00019449,2]
[349896410,1737484233196,-500.0,0.00019449,2]
[349896411,1737484233206,-500.0,0.00019449,2]
[349896412,1737484233216,-500.0,0.00019449,2]
[349896413,1737484233226,-500.0,0.00019449,2]
[349896414,1737484233236,-500.0,0.00019449,2]
[349896415,1737484233248,-500.0,0.00019449,2]
[349896416,1737484233258,-500.0,0.00019449,2]
[349896417,1737484233269,-500.0,0.00019449,2]
[349896418,1737484233278,-500.0,0.00019449,2]
[349896419,1737484233288,-500.0,0.00019449,2]
[349896420,1737484233298,-500.0,0.00019449,2]
[349896421,1737484233308,-500.0,0.00019449,2]
[349896422,1737484233318,-500.0,0.00019449,2]
[349896423,1737484233328,-500.0,0.00019449,2]
[349896424,1737484233338,-500.0,0.00019449,2]
[349896425,1737484233348,-500.0,0.00019449,2]
[349896426,1737484233359,-500.0,0.00019449,2]
[349896427,1737484233368,-500.0,0.00019449,2]
[349896428,1737484233377,-500.0,0.00019449,2]
[349896429,1737484233388,-500.0,0.00019449,2]
[349896430,1737484233398,-500.0,0.00019449,2]
[349896431,1737484233408,-500.0,0.00019449,2]
[349896432,1737484233418,-500.0,0.00019449,2]
[349896433,1737484233430,-500.0,0.00019449,2]
[349896434,1737484233441,-500.0,0.00019449,2]
[349896435,1737484233451,-500.0,0.00019449,2]
[349896436,1737484233461,-500.0,0.00019449,2]
[349896437,1737484233471,-500.0,0.00019449,2]
[349896438,1737484233481,-500.0,0.00019449,2]
[349896439,1737484233491,-500.0,0.00019449,2]
[349896440,1737484233500,-500.0,0.00019449,2]
[349896441,1737484233511,-500.0,0.00019449,2]
[349896442,1737484233522,-500.0,0.00019449,2]
[349896443,1737484233532,-500.0,0.00019449,2]
[349896444,1737484233542,-500.0,0.00019449,2]
[349896445,1737484233552,-500.0,0.00019449,2]
[349896446,1737484233562,-500.0,0.00019449,2]
[349896447,1737484233572,-500.0,0.00019449,2]
[349896448,1737484233581,-500.0,0.00019449,2]
[349896449,1737484233591,-615.24,0.00019449,2]
[349896450,1737484233601,-500.0,0.00019449,2]
[349896451,1737484233612,-500.0,0.00019449,2]
[349896452,1737484233621,-500.0,0.00019449,2]
[349896453,1737484233631,-500.0,0.00019449,2]
[349896454,1737484233641,-560.82,0.00019449,2]
[349896455,1737484233650,-217.80066391,0.00019449,2]
[349896456,1737484233660,-500.0,0.00019451,2]
[349896457,1737484233670,-503.9775673,0.00019451,2]
[349896458,1737484233680,-500.0,0.00019451,2]
[349896459,1737484233690,-510.93467353,0.00019451,2]
[349896460,1737484233700,-500.0,0.00019451,2]
[349896461,1737484233709,-500.0,0.00019451,2]
[349896462,1737484233719,-548.87996886,0.00019451,2]
[349896463,1737484233730,-500.0,0.00019451,2]
[349896464,1737484233740,-226.23613048,0.00019451,2]
[349896465,1737484233750,-500.0,0.00019451,2]
[349896466,1737484233760,-500.0,0.00019451,2]
[349896467,1737484233771,-500.0,0.00019451,2]
[349896468,1737484233782,-500.0,0.00019451,2]
[349896469,1737484233792,-500.0,0.00019451,2]
[349896470,1737484233803,-500.0,0.00019451,2]
[349896471,1737484233813,-500.0,0.00019451,2]
[349896472,1737484233822,-500.0,0.00019451,2]
[349896473,1737484233832,-500.0,0.00019451,2]
[349896474,1737484233841,-500.0,0.00019451,2]
[349896475,1737484233851,-500.0,0.00019451,2]
[349896476,1737484233863,-507.80309875,0.00019451,2]
[349896477,1737484233872,-500.0,0.00019451,2]
[349896478,1737484233882,-500.0,0.00019451,2]
[349896479,1737484233892,-500.0,0.00019451,2]
[349896480,1737484233902,-500.0,0.00019451,2]
[349896481,1737484233911,-500.0,0.00019451,2]
[349896482,1737484233920,-500.0,0.00019451,2]
[349896483,1737484233929,-25359.81570086,0.000195,2]
[349896484,1737484233939,-291.46723716,0.00019623,2]
[349896485,1737484233950,-5000.0,0.00019623,2]
[349896486,1737484233960,-16204.8014,0.00019625,2]
[349896487,1737484233970,-3069.90075778,0.00019678,2]
[349896488,1737484233980,-1000.0,0.00019687,2]
[349896489,1737484233990,-500.0,0.00019721,2]
[349896490,1737484234000,-500.0,0.00019721,2]
[349896491,1737484234011,-615.08,0.00019721,2]
[349896492,1737484234021,-500.0,0.00019721,2]
[349896493,1737484234031,-592.22,0.00019721,2]
[349896494,1737484234041,-1549.84,0.00019721,2]
[349896495,1737484234051,-500.0,0.00019721,2]
[349896496,1737484234061,-1152.16,0.00019721,2]
[349896497,1737484234071,-680.46,0.00019721,2]
[349896498,1737484234082,-1030.49,0.00019721,2]
[349896499,1737484234092,-1383.7,0.00019721,2]
[349896500,1737484234103,-500.0,0.00019721,2]
[349896501,1737484234116,-771.88,0.00019721,2]
[349896502,1737484234126,-547.69,0.00019721,2]
[349896503,1737484234135,-1604.99,0.00019721,2]
[349896504,1737484234146,-500.0,0.00019721,2]
[349896505,1737484234156,-1262.99,0.00019721,2]
[349896506,1737484234166,-500.0,0.00019721,2]
[349896507,1737484234176,-500.0,0.00019721,2]
[349896508,1737484234186,-699.87,0.00019721,2]
[349896509,1737484234196,-1547.24,0.00019721,2]
[349896510,1737484234206,-500.0,0.00019721,2]
[349896511,1737484234215,-500.0,0.00019721,2]
[349896512,1737484234226,-500.0,0.00019721,2]
[349896513,1737484234236,-1230.11,0.00019721,2]
[349896514,1737484234246,-500.0,0.00019722,2]
[349896515,1737484234256,-500.0,0.00019722,2]
[349896516,1737484234266,-500.0,0.00019722,2]
[349896517,1737484234276,-503.74187783,0.00019722,2]
[349896518,1737484234287,-500.0,0.00019722,2]
[349896519,1737484234298,-500.0,0.00019722,2]
[349896520,1737484234308,-500.32583259,0.00019722,2]
[349896521,1737484234318,-500.0,0.00019722,2]
[349896522,1737484234328,-552.03,0.00019722,2]